Cogmind - Beta 15 @@@ ROGUE MODE // 2025.05.11 @ 15:56:43 Player: Demo Result: Destroyed by C-40 Crusher with Compactor Performance ------------- Evolutions (5) 2500 Regions Visited (7) 1400 Robots Destroyed (33) 165 Value Destroyed (722) 722 Prototype IDs (21) 420 Alien Tech Used (0) 0 Bonus (897) 897 TOTAL SCORE: 6104 Bonus ------- Follower Combat Kills 97 Registered with UFD 300 Met Optimus in HQ 500 Cogmind --------- Core Integrity 0/1000 Matter 56/300 Energy 100/100 System Corruption 14% Temperature Cool (0) Movement Core (50) Location -5/Waste Parts ------- > --- POWER (1) -------- (None) > --- PROPULSION (5) --- (None) > --- UTILITY (8) ------ (None) > --- WEAPON (3) ------- (None) > --- INVENTORY (5) ---- Humpback Powered Cannon CPS Tube (2) Peak State ------------ > --- POWER ------------ Light Angular Momentum Engine > --- PROPULSION ------- Wheel Wheel Wheel Wheel Armored Wheel > --- UTILITY ---------- Improved Cooling System Humpback Machine Analyzer Seismic Detector Transmission Jammer Heavy Armor Plating > --- WEAPON ----------- Barrage Gun Greatsword > --- INVENTORY -------- Ion Engine Power Amplifier Cryofiber Web Improved Heat Sink Improved Cooling System Humpback High-capacity Battery Compact Matter Pod Improved Signal Interpreter Improved Salvage Targeting Computer Improved Targeting Computer Precision Matter Filter Precision Matter Filter Improved Medium Armor Plating System Shield Makeshift System Shield Thermic Laser Improved EM Pulse Cannon Powered Cannon Enhanced Gauss Cannon Improved Proton Missile Launcher Rocket Launcher Improved Remote Datajack CPS Tube CPS Tube CPS Tube CPS Tube CPS Tube CPS Tube Multitool Vortex Trap Vortex Trap [Rating: 54] Favorites ----------- Power Ion Engine Engine Ion Engine Propulsion Wheel Treads Light Treads Wheel Wheel Utility Humpback Device Seismic Detector Storage Humpback Processor Machine Analyzer Protection Heavy Armor Plating Weapon Barrage Gun Energy Gun Riot Gun Energy Cannon Subdweller Beam Cannon Ballistic Gun Barrage Gun Launcher Grenade Launcher Slashing Weapon Greatsword Build | -11 -10 -10 -10 -7 -7 -5 -5 ------- Run | Yrd Mat Min Sub Rec Scr Fac Was Slots Evolved 10 | . . . . . . 10 . Power . | . . . . . . . . Propulsion 3 | . . . . . . 3 . Utility 6 | . . . . . . 6 . Weapon 1 | . . . . . . 1 . Parts Attached 46 | 8 4 2 15 2 4 11 . Power 5 | 1 1 . 1 . 1 1 . Engine 5 | 1 1 . 1 . 1 1 . Core . | . . . . . . . . Reactor . | . . . . . . . . Propulsion 13 | 3 1 1 5 . 1 2 . Treads 1 | . . . 1 . . . . Leg . | . . . . . . . . Wheel 12 | 3 1 1 4 . 1 2 . Hover . | . . . . . . . . Flight . | . . . . . . . . Utility 11 | 2 1 . 2 . 1 5 . Device 5 | 1 . . 1 . . 3 . Storage 4 | 1 1 . 1 . 1 . . Processor 1 | . . . . . . 1 . Hackware . | . . . . . . . . Protection 1 | . . . . . . 1 . Artifact . | . . . . . . . . Weapon 17 | 2 1 1 7 2 1 3 . Energy Gun 7 | 2 . . 4 1 . . . Energy Cannon 2 | . . . . 1 1 . . Ballistic Gun 4 | . 1 . 3 . . . . Ballistic Cannon . | . . . . . . . . Launcher 3 | . . 1 . . . 2 . Special Weapon . | . . . . . . . . Impact Weapon . | . . . . . . . . Slashing Weapon 1 | . . . . . . 1 . Piercing Weapon . | . . . . . . . . Special Melee Weapon . | . . . . . . . . Unidentified Prototypes 3 | . . . 1 . . 2 . Parts Lost 16 | . . . 6 . . . 10 Power . | . . . . . . . . Propulsion 4 | . . . 1 . . . 3 Utility 5 | . . . . . . . 5 Weapon 7 | . . . 5 . . . 2 Highest Loss Streak 10 | . . . 2 . . . 10 To Critical Strikes 1 | . . . . . . . 1 Average Backups 28 | 3 8 10 29 32 29 27 28 Power 2 | . . . 3 4 1 . . Propulsion 4 | 2 5 5 5 4 3 . . Utility 12 | . 2 2 10 15 15 14 14 Weapon 6 | . 1 3 8 7 5 4 6 Tool/Special . | . . . . . . . . Unused Backups 69 | . 3 . 12 6 20 2 26 Power 6 | . . . 1 1 4 . . Propulsion 7 | . . . 2 . 5 . . Utility 33 | . 3 . 5 3 7 1 14 Weapon 15 | . . . 4 2 4 1 4 Tool/Special 8 | . . . . . . . 8 Average Slot Usage (%) 85 | . 100 100 85 84 84 78 67 Engine 13 | . 14 14 14 14 13 5 3 Wheel 27 | . 28 28 27 28 28 26 23 Device 2 | . 14 14 1 . . 16 13 Storage 13 | . 14 14 13 14 13 5 4 Energy Gun 5 | . 24 14 9 1 . . . Energy Cannon 6 | . . . . 12 14 1 . Ballistic Gun 11 | . 3 8 11 13 14 5 2 Launcher 2 | . . 5 7 . . . 1 Peak Build Rating 54 | 7 8 8 22 19 23 54 54 Average Rating 19 | 6 7 8 16 18 20 49 44 On Entrance 16 | . 7 8 8 16 19 23 54 Naked Turns 11 | . . . . . . . 11 Heaviest Build 238 | 15 20 21 214 216 216 238 237 Greatest Support 52 | 20 20 20 20 20 22 52 52 Greatest Overweight (x) 67 | 1 . 1 10 10 10 5 67 Average Overweight (x) 7 | . . . 8 10 9 4 4 Largest Inventory Capacity 35 | 8 10 10 35 35 35 35 35 Average Capacity 32 | 7 8 10 32 35 34 35 32 Most Carried 35 | 8 10 10 35 35 35 35 35 Average Carried 30 | 3 8 10 31 34 32 31 32 Final Capacity 35 | 8 10 10 35 35 35 35 5 Final Carried 35 | 8 10 10 34 35 35 35 5 Class Distribution -------------------- 90% | Hauler-Mutant 6% | Mutant 3% | Scavenger-Mutant Dominant Class ---------------- Mutant | -10/Materials Scavenger-Mutant | -10/Mines Hauler-Mutant | -10/Subcaves Hauler-Mutant | -7/Recycling Hauler-Mutant | -7/Scraptown Hauler-Mutant | -5/Factory Hauler-Mutant | -5/Waste Resources | -11 -10 -10 -10 -7 -7 -5 -5 ----------- Run | Yrd Mat Min Sub Rec Scr Fac Was Matter Collected 2247 | 410 188 . 1274 256 72 47 . Remotely . | . . . . . . . . Salvage Created 1180 | 196 259 12 431 235 . 47 . Parts 72 | 19 17 3 24 6 . 3 . Haulers Intercepted 1 | . 1 . . . . . . Recyclers Shooed . | . . . . . . . . Parts Field Recycled . | . . . . . . . . Retrieved Matter . | . . . . . . . . Parts Self-Destructed 16 | . . . 16 . . . . Prevented . | . . . . . . . . Kills | -11 -10 -10 -10 -7 -7 -5 -5 ------- Run | Yrd Mat Min Sub Rec Scr Fac Was Combat Hostiles Destroyed 19 | . 6 . 11 . . 2 . Guns 15 | . 6 . 9 . . . . AOE 4 | . . . 2 . . 2 . Classes Destroyed 10 | 3 4 . 2 . . 1 . Worker 3 | 2 1 . . . . . . Builder 2 | . 1 . . . . 1 . Tunneler 7 | 6 . 1 . . . . . Hauler 1 | . 1 . . . . . . Recycler 1 | 1 . . . . . . . Swarmer 5 | . 3 . 2 . . . . Grunt 3 | . 3 . . . . . . Programmer 2 | . . . . . . 2 . Artisan 1 | . . . 1 . . . . Subdweller 9 | . . . 9 . . . . Best Kill Streak 3 | 2 3 1 2 . . 2 . Combat Bots Only 3 | . 3 . 2 . . 2 . Max Kills in Single Turn 2 | 1 2 1 2 . . 2 . Gunslinging 1 | . 1 . . . . . . Exploded 2 | . . . 1 . . 2 . Melee . | . . . . . . . . Uniques/NPCs Destroyed . | . . . . . . . . Combat | -11 -10 -10 -10 -7 -7 -5 -5 -------- Run | Yrd Mat Min Sub Rec Scr Fac Was Hostile Shots Fired 131 | . 17 . 63 . . 18 33 Missed 36 | . 3 . 19 . . 10 4 Hits 95 | . 14 . 44 . . 8 29 Melee 29 | . . . . . . . 29 Projectile 66 | . 14 . 44 . . 8 . AOE 3 | . . . 3 . . . . Critical Strikes 19 | . . . 1 . . 1 17 Damage Taken 2998 | . 148 . 1088 30 . 163 1569 Core 1228 | . 26 . 202 . . 20 980 Absorbed by Shields . | . . . . . . . . Core Remaining (%) 54 | 100 . . . . 8 . . Volleys Fired 166 | 24 16 2 106 9 . 4 5 Largest 2 | 2 2 1 2 2 . 2 1 Hottest 108 | 100 100 30 108 100 . 61 33 Shots Fired 246 | 48 32 2 139 12 . 8 5 Gun 172 | 48 32 . 82 6 . 4 . Cannon 6 | . . . . 6 . . . Launcher 68 | . . 2 57 . . 4 5 Special . | . . . . . . . . Kinetic 33 | . 1 . 28 . . 4 . Thermal 119 | 48 31 . 34 6 . . . Explosive 68 | . . 2 57 . . 4 5 Electromagnetic 26 | . . . 20 6 . . . Robot Hit Streak 14 | 3 7 . 14 7 . 10 4 Robot Miss Streak 3 | 3 2 . 3 2 . 1 1 Penetration Max . | . . . . . . . . Secondary Targets 1 | . 1 . . . . . . Max Gunslinging Chain 1 | . 1 . . . . . . Shots Hit Robots 94 | 22 17 . 39 4 . 8 4 Core Hits 59 | 10 12 1 24 4 . 6 2 Critical Kills . | . . . . . . . . Critical Parts Destroyed . | . . . . . . . . Critical Strikes 7 | 2 4 . 1 . . . . Burn 7 | 2 4 . 1 . . . . Melee Attacks 7 | . . . . . . 6 1 Impact . | . . . . . . . . Slashing 7 | . . . . . . 6 1 Piercing . | . . . . . . . . Sneak Attacks 1 | . . . . . . 1 . Combat Hostiles . | . . . . . . . . Follow-up Attacks . | . . . . . . . . Damage Inflicted 2721 | 273 226 39 1052 101 . 432 598 Guns 1186 | 273 226 . 545 71 . 71 . Cannons 30 | . . . . 30 . . . Explosions 1325 | . . 39 507 . . 203 576 Melee 180 | . . . . . . 158 22 Ramming . | . . . . . . . . Kinetic 277 | . . . 206 . . 71 . Thermal 661 | 273 226 . 132 30 . . . Explosive 1279 | . . 39 461 . . 203 576 Electromagnetic 324 | . . . 253 71 . . . Impact . | . . . . . . . . Slashing 180 | . . . . . . 158 22 Piercing . | . . . . . . . . Highest Corruption 14 | . . . 3 3 . 1 14 Average Corruption 3 | . . . 3 3 . 1 8 Corruption Purged . | . . . . . . . . Corruption Blocked . | . . . . . . . . Effects 78 | . . . 49 24 . 1 4 Message Errors 18 | . . . 13 4 . . 1 Matter Fused 20 | . . . 10 8 . 1 1 Heat Flow Errors 12 | . . . 7 5 . . . Energy Discharges 10 | . . . 8 2 . . . Parts Rejected 1 | . . . . . . . 1 Parts Fused 1 | . . . . 1 . . . Data Loss (minor) 9 | . . . 6 3 . . . Data Loss (major) 4 | . . . 3 1 . . . Misfires 1 | . . . 1 . . . . Alerts 1 | . . . 1 . . . . Misdirections 1 | . . . . . . . 1 Overload Shots . | . . . . . . . . Overflow Damage 68 | . . . . . . 68 . Projectiles . | . . . . . . . . Explosions . | . . . . . . . . Melee 68 | . . . . . . 68 . Knockbacks . | . . . . . . . . Impact . | . . . . . . . . Kinetic . | . . . . . . . . Secondary . | . . . . . . . . Self-Inflicted Damage 145 | . . . 65 31 . . 49 Shots 6 | . . . 4 1 . . 1 Rammed . | . . . . . . . . Targets Rammed . | . . . . . . . . Kicked . | . . . . . . . . Crushed . | . . . . . . . . Highest Temperature 449 | 449 154 . 234 279 . . . Average Temperature 108 | 147 66 . 92 100 . . . Received Heat Transfer 219 | . 42 . 177 . . . . Effects 8 | 6 . . 1 1 . . . Energy Bleed 3 | 1 . . 1 1 . . . Interference 3 | 3 . . . . . . . Matter Decay 1 | 1 . . . . . . . Short Circuit 1 | 1 . . . . . . . Siege Activations . | . . . . . . . . Martial Activations . | . . . . . . . . Shielding Activations . | . . . . . . . . Robots Disrupted . | . . . . . . . . Combat Hostiles . | . . . . . . . . Robots Corrupted . | . . . . . . . . Combat Hostiles . | . . . . . . . . Parts Fried . | . . . . . . . . Impact Corruptions . | . . . . . . . . Robots Melted . | . . . . . . . . Combat Hostiles . | . . . . . . . . Parts Melted 1 | . 1 . . . . . . Heat Transferred 2233 | 962 962 . 272 37 . . . Parts Sabotaged . | . . . . . . . . Parts Stolen . | . . . . . . . . Parts Stripped . | . . . . . . . . Power Chain Reactions 2 | . . . 1 1 . . . Alert | -11 -10 -10 -10 -7 -7 -5 -5 ------- Run | Yrd Mat Min Sub Rec Scr Fac Was Maximum Alert Level . | . . . . . . . . Low Security (%) 100 | 100 100 100 . 100 . 100 100 Level 1 . | . . . . . . . . Level 2 . | . . . . . . . . Level 3 . | . . . . . . . . Level 4 . | . . . . . . . . Level 5 . | . . . . . . . . High Security . | . . . . . . . . Max Security . | . . . . . . . . Peak Influence 130 | 10 130 14 . 97 . 84 34 Initial 64 | . . 3 . 64 . . . Average 29 | 1 63 4 . 29 . 21 3 Influence Increases 937 | 45 220 14 242 235 . 127 54 Destroy 0b10 Robot/C 220 | . 120 . 60 . . 40 . Destroy 0b10 Robot/NC 85 | 45 15 5 . 15 . 5 . Destroy Leader 32 | . 32 . . . . . . Allied During Kill 2 | . . . 2 . . . . Successful Hack 37 | . 7 . . 30 . . . Select Force Hacks 210 | . . . . 180 . 30 . Destroy Structure 126 | . 1 9 . 10 . 52 54 Partial Spotted 15 | . 15 . . . . . . Lose Combat Pursuer 210 | . 30 . 180 . . . . Influence Decreases 937 | 45 211 19 112 356 13 127 54 Entered New Map 92 | . . 6 3 70 13 . . Time Decay 721 | 45 211 13 9 286 . 127 30 Lost Part 44 | . . . 20 . . . 24 Lost Ally 80 | . . . 80 . . . . Squads Dispatched 4 | . 3 . . . . 1 . Investigation 3 | . 2 . . . . 1 . Extermination . | . . . . . . . . Reinforcement 1 | . 1 . . . . . . Assault . | . . . . . . . . Garrison . | . . . . . . . . Intercept . | . . . . . . . . Searches Triggered . | . . . . . . . . Construction Impeded . | . . . . . . . . Haulers Reinforced . | . . . . . . . . Active Scanning Responses . | . . . . . . . . Cargo Convoy Interrupts . | . . . . . . . . Stealth | -11 -10 -10 -10 -7 -7 -5 -5 --------- Run | Yrd Mat Min Sub Rec Scr Fac Was Distress Signals 2 | . 2 . . . . . . Communications Jammed . | . . . . . . . . Distress Signals . | . . . . . . . . Times Spotted 51 | . 8 . 35 . . 3 5 Peak Tracking Total 6 | . 5 . 6 . . 2 5 Tactical Retreats 7 | . 2 . 5 . . . . Traps | -11 -10 -10 -10 -7 -7 -5 -5 ------- Run | Yrd Mat Min Sub Rec Scr Fac Was Traps Triggered 4 | . 1 . 2 . . 1 . Indirectly . | . . . . . . . . Trap Hack Attempts . | . . . . . . . . Triggered . | . . . . . . . . Disarmed . | . . . . . . . . Reprogrammed . | . . . . . . . . Reused 1 | . . . . . . . 1 Traps Extracted . | . . . . . . . . Installed 1 | . . . . . . . 1 Triggered . | . . . . . . . . Most Traps Carried 2 | . . . . . 2 2 2 Machines | -11 -10 -10 -10 -7 -7 -5 -5 ---------- Run | Yrd Mat Min Sub Rec Scr Fac Was Machines Disabled 3 | . . . 3 . . . . Max in Single Turn 2 | . . . 2 . . . . Machines Repaired . | . . . . . . . . Machines Dismantled . | . . . . . . . . Machines Sabotaged . | . . . . . . . . Overloaded Fab Kills . | . . . . . . . . Hacking | -11 -10 -10 -10 -7 -7 -5 -5 --------- Run | Yrd Mat Min Sub Rec Scr Fac Was Machines Accessed 23 | . 2 . 1 12 5 3 . Terminals 8 | . 2 . . 5 . 1 . Fabricators 1 | . . . . . . 1 . Repair Stations . | . . . . . . . . Recycling Units 8 | . . . . 7 . 1 . Scanalyzers . | . . . . . . . . Garrison Access . | . . . . . . . . Total Hacks 69 | . 10 . 3 31 20 5 . Successful 44 | . 3 . 3 16 20 2 . Failed 25 | . 7 . . 15 . 3 . Catastrophic 3 | . 1 . . 1 . 1 . Database Lockouts . | . . . . . . . . Manual 28 | . 5 . . 20 . 3 . Terminals 29 | . 10 . . 17 . 2 . Fabricators 2 | . . . . . . 2 . Repair Stations . | . . . . . . . . Recycling Units 15 | . . . . 14 . 1 . Scanalyzers . | . . . . . . . . Garrison Access . | . . . . . . . . Terminal Hacks 33 | . 3 . 3 6 20 1 . Record 16 | . . . 2 . 14 . . Robot Schematic 1 | . . . . 1 . . . Robot Analysis 8 | . . . . 3 5 . . Open DSF 1 | . . . . . . 1 . Branch Access Points 1 | . 1 . . . . . . Emergency Access Points 1 | . 1 . . . . . . Alert Level 1 | . . . . 1 . . . Zone Layout 2 | . 1 . . 1 . . . Proto ID Catalog 2 | . . . 1 . 1 . . Fabricator Hacks . | . . . . . . . . Repair Station Hacks . | . . . . . . . . Recycling Unit Hacks 2 | . . . . 2 . . . Retrieve Components 2 | . . . . 2 . . . Scanalyzer . | . . . . . . . . Garrison Access Hacks . | . . . . . . . . Unauthorized Hacks 9 | . . . . 8 . 1 . Terminals 2 | . . . . 2 . . . Track 1 | . . . . 1 . . . Botnet 1 | . . . . 1 . . . Fabricators . | . . . . . . . . Repair Stations . | . . . . . . . . Recycling Units 7 | . . . . 6 . 1 . Tunnel 7 | . . . . 6 . 1 . Scanalyzers . | . . . . . . . . Garrison Access . | . . . . . . . . Data Cores Recovered . | . . . . . . . . Used . | . . . . . . . . Hacking Detections 9 | . 2 . . 6 . 1 . Full Trace Events 4 | . 1 . . 3 . . . Feedback Events . | . . . . . . . . Feedback Blocked . | . . . . . . . . Robot Schematics Acquired 1 | . . . . 1 . . . Robots Built . | . . . . . . . . Authchips . | . . . . . . . . Time . | . . . . . . . . Total Robot Build Rating . | . . . . . . . . Part Schematics Acquired . | . . . . . . . . Parts Built . | . . . . . . . . Authchips . | . . . . . . . . Time . | . . . . . . . . Total Part Build Rating . | . . . . . . . . Parts Repaired . | . . . . . . . . Time . | . . . . . . . . Parts Recycled . | . . . . . . . . Recycled Matter . | . . . . . . . . Retrieved Matter . | . . . . . . . . Retrieved Components 7 | . . . . 7 . . . Parts Scanalyzed . | . . . . . . . . Part Schematics Acquired . | . . . . . . . . Parts Damaged . | . . . . . . . . Bothacking | -11 -10 -10 -10 -7 -7 -5 -5 ------------ Run | Yrd Mat Min Sub Rec Scr Fac Was Used RIF Installer . | . . . . . . . . Robots Hacked . | . . . . . . . . Non-combat . | . . . . . . . . Combat . | . . . . . . . . Robot Hacks Applied . | . . . . . . . . Relay Couplers Released . | . . . . . . . . Fabnet Peak Effective % . | . . . . . . . . Robots Rewired . | . . . . . . . . Allies Hacked . | . . . . . . . . Hacks Repelled . | . . . . . . . . Allies | -11 -10 -10 -10 -7 -7 -5 -5 -------- Run | Yrd Mat Min Sub Rec Scr Fac Was Total Allies 7 | . . 3 4 . . . . Largest Group 4 | . . 3 4 . . . . Highest-Rated Group 76 | . . 40 76 . . . . Highest-Rated Ally 19 | . . 16 19 . . . . Total Orders . | . . . . . . . . Ally Attacks 41 | . . . 41 . . . . Total Damage 537 | . . . 537 . . . . Kills 4 | . . . 4 . . . . Allies Corrupted . | . . . . . . . . Allies Melted 1 | . . . 1 . . . . Intel | -11 -10 -10 -10 -7 -7 -5 -5 ------- Run | Yrd Mat Min Sub Rec Scr Fac Was Active Infowar (turns) 1549 | 160 452 45 228 . . 498 166 Seismic 1519 | 160 452 45 228 . . 497 137 Machine Analysis 664 | . . . . . . 498 166 Jamming 621 | . . . . . . 496 125 Robot Analysis Total 8 | . . . . 3 5 . . Derelict Logs Recovered 7 | . . 1 1 . 5 . . Drone Launches . | . . . . . . . . Drone Recoveries . | . . . . . . . . Exploration | -11 -10 -10 -10 -7 -7 -5 -5 ------------- Run | Yrd Mat Min Sub Rec Scr Fac Was Turns Passed 11368 | 227 452 45 4523 1085 4358 501 177 Spaces Moved 5119 | 146 260 39 1939 441 1919 284 91 Core 8 | 7 . . . . . . 1 Treads . | . . . . . . . . Legs . | . . . . . . . . Wheels 5111 | 139 260 39 1939 441 1919 284 90 Hover . | . . . . . . . . Flight . | . . . . . . . . Fastest Speed 50 | 50 80 80 80 230 80 142 142 Average Speed 200 | 78 80 83 208 230 223 147 181 Slowest Speed 3400 | 95 80 95 230 230 230 157 3400 Overloaded Moves . | . . . . . . . . Propulsion Burnouts . | . . . . . . . . Robots Hopped . | . . . . . . . . Potential Cave-ins 1 | . . . 1 . . . . Cave-ins Triggered 1 | . . . 1 . . . . Exploration Rate (%) 46 | 6 52 6 83 81 91 9 45 Regions Visited 7 Branch Regions 4 Pre-discovered Areas 13 | . . 1 1 6 4 1 . Known Exits Taken 1 | . 1 . . . . . . Unknown Exits Taken 5 | 1 . 1 1 1 1 . . Scrap Searched 10 | . . . 5 . 5 . . Spaces Dug 119 | . . . 110 5 . 4 . Terrain Destroyed 442 | . . 16 342 10 . 41 33 Melee 4 | . . . . . . 4 . Projectile 11 | . . . 5 5 . 1 . AOE 427 | . . 16 337 5 . 36 33 Terrain Rammed . | . . . . . . . . Walls Destroyed . | . . . . . . . . Machines Disabled . | . . . . . . . . Actions | -11 -10 -10 -10 -7 -7 -5 -5 --------- Run | Yrd Mat Min Sub Rec Scr Fac Was Total 5982 | 208 474 49 2295 504 2001 349 102 Wait 363 | 18 182 6 101 35 1 20 . Move 5113 | 145 259 38 1938 440 1918 284 91 Hop . | . . . . . . . . Pick Up 172 | 10 6 . 87 9 50 10 . Fast Attach 23 | 8 1 . 6 . 2 5 1 Attach 18 | . . . 5 1 1 10 1 Detach 3 | . . . . . . 3 . Swap 29 | . 3 2 17 3 3 1 . Drop 87 | 3 7 1 35 7 26 6 2 Fire 166 | 24 16 2 106 9 . 4 5 Melee 7 | . . . . . . 6 1 Ram . | . . . . . . . . Kick . | . . . . . . . . Crush . | . . . . . . . . Escape Stasis . | . . . . . . . . Rewire . | . . . . . . . . Trap 1 | . . . . . . . 1 Miscellaneous . | . . . . . . . . Route ------- -11/Scrapyard -10/Materials -10/Mines -10/Subcaves (discovered 3 exits: [*Mat x2] / *Rec) -7/Recycling (discovered 2 exits: *Fac / *Scr) -7/Scraptown (discovered 2 exits: *Fac x2) -5/Factory (discovered 2 exits: [*Upp] / DSF) -5/Waste History --------- Turn | Location | Event 11 | -11/Scrapyard | Discovered new exit (range 16) 228 | -11/Scrapyard | Entered Materials 234 | -10/Materials | Identified exit to Mines 300 | -10/Materials | Build established: Mutant 680 | -10/Materials | Entered Mines 685 | -10/Mines | Assisted by bots powering up and referring to "LRC-V3" 693 | -10/Mines | Learned location of Zion (-6) 712 | -10/Mines | Discovered new exit (range 9) 725 | -10/Mines | Entered Subcaves 725 | -10/Subcaves | Accompanied by 3 allies 726 | -10/Subcaves | Approached by a straggling Scientist 727 | -10/Subcaves | Shifting Twisted Machinery released Riot Gun 842 | -10/Subcaves | Shifting Twisted Machinery released Flamer 848 | -10/Subcaves | Build established: Scavenger-Mutant 881 | -10/Subcaves | A swath of the cavern ceiling suddenly collapsed 920 | -10/Subcaves | Ambushed by swarm of Subdwellers 973 | -10/Subcaves | Lost 4 allies 1247 | -10/Subcaves | Build established: Hauler-Mutant 1842 | -10/Subcaves | Visited 4L-MR0's lab 1872 | -10/Subcaves | Found Powered Cannon 2117 | -10/Subcaves | Shifting Twisted Machinery released Slug Cannon 2293 | -10/Subcaves | Shifting Twisted Machinery released Mak. Flight Unit 2331 | -10/Subcaves | Shifting Twisted Machinery released Barrage Gun 2565 | -10/Subcaves | Learned location of Storage (-7) 2653 | -10/Subcaves | Crushed by falling debris 2653 | -10/Subcaves | Core integrity fell below 50% 2796 | -10/Subcaves | Ambushed by Subdweller buried in earth 2798 | -10/Subcaves | Ambushed by Subdweller buried in earth 3131 | -10/Subcaves | Disturbed a concealed Subdweller 3203 | -10/Subcaves | Discovered new exit (range 8) 3300 | -10/Subcaves | Visited triangular shrine 3314 | -10/Subcaves | Found Prototype Device 3371 | -10/Subcaves | Identified V3-11A's Pendant 3388 | -10/Subcaves | Befriended Subdweller 3458 | -10/Subcaves | Ambushed by Subdweller buried in earth 3459 | -10/Subcaves | Befriended Subdweller 3489 | -10/Subcaves | Befriended Subdweller 3509 | -10/Subcaves | Befriended Subdweller 4421 | -10/Subcaves | Discovered new exit (range 15) 4956 | -10/Subcaves | Core integrity fell below 20% 5001 | -10/Subcaves | Lost 4 allies 5223 | -10/Subcaves | Discovered new exit (range 11) 5248 | -10/Subcaves | Entered Recycling 5753 | -7/Recycling | Discovered new exit (range 16) 6275 | -7/Recycling | Scanned before Scraplab entrance 6307 | -7/Recycling | Entered Scraplab 6326 | -7/Recycling | Discovered new exit (range 3) 6333 | -7/Recycling | Entered Scraptown 6333 | -7/Scraptown | System corruption cleaned by C-Scrubber 6575 | -7/Scraptown | Visited UFD Registry 6575 | -7/Scraptown | Registered with UFD as "Armorflow" 6603 | -7/Scraptown | Heard Great Nut preacher, LISTEN AND RECITE! 7044 | -7/Scraptown | Delivered V3-11A's Pendant to T0-NE2 in exchange for information 7523 | -7/Scraptown | Discovered new exit (range 11) 7552 | -7/Scraptown | Scanned Subdweller tech in exchange for log data 7562 | -7/Scraptown | Learned location of 1 exit from Research 7564 | -7/Scraptown | Learned location of Armory (-3) 7566 | -7/Scraptown | Learned location of 2 exits from Lower Caves 7642 | -7/Scraptown | Guru changed UFD alias to "Steelguard" 8706 | -7/Scraptown | Visited CPS Storage 8741 | -7/Scraptown | Visited Comm Corps 8840 | -7/Scraptown | Visited Awakened 8890 | -7/Scraptown | Visited Spacefarers 9090 | -7/Scraptown | Visited Assassins FH 9123 | -7/Scraptown | Visited Cave Peace 9241 | -7/Scraptown | Visited Curators Association 9311 | -7/Scraptown | Visited Scrapoid Research Area 9377 | -7/Scraptown | Delivered Scrap Shield to a Scientist 9590 | -7/Scraptown | Visited Analyses Database 9648 | -7/Scraptown | Visited Research Penetration Think Tank 9694 | -7/Scraptown | Visited Scrapoid Pod Storage 9718 | -7/Scraptown | Visited Abandonware Association 9742 | -7/Scraptown | Learned abandonware demo "OVRCLOCK.EXE" 9753 | -7/Scraptown | Learned abandonware demo "REPAIR.EXE" 9802 | -7/Scraptown | Visited Science Testing Area 9874 | -7/Scraptown | Visited Science Guys 9961 | -7/Scraptown | Visited Scrap Suit Storage 10551 | -7/Scraptown | Met Optimus 10551 | -7/Scraptown | Accepted into 0bPrime 10685 | -7/Scraptown | Discovered new exit (range 3) 10691 | -7/Scraptown | Entered Factory 10691 | -5/Factory | Evolved 10 slots: Propulsion x3, Utility x6, Weapon x1 10849 | -5/Factory | Spotted B-75 Beast 11027 | -5/Factory | Identified exit to DSF 11049 | -5/Factory | Discovered new exit (range 12) 11192 | -5/Factory | Sucked down chute 11192 | -5/Factory | Entered Waste 11207 | -5/Waste | EMP discharged 11265 | -5/Waste | Spotted C-40 Crusher 11269 | -5/Waste | Spotted C-40 Crusher 11284 | -5/Waste | Spotted C-40 Crusher 11291 | -5/Waste | Spotted C-40 Crusher 11307 | -5/Waste | EMP discharged 11307 | -5/Waste | System corruption reached 10% 11309 | -5/Waste | Spotted C-40 Crusher 11317 | -5/Waste | Crushed by Compactor (1 part destroyed, 1 dropped) 11323 | -5/Waste | Crushed by Compactor (1 part destroyed) 11326 | -5/Waste | Crushed by Compactor (0 parts destroyed, 2 dropped) 11329 | -5/Waste | Crushed by Compactor (1 part destroyed) 11341 | -5/Waste | Crushed by Compactor (0 parts destroyed, 1 dropped) 11358 | -5/Waste | Crushed by Compactor (1 part destroyed) 11360 | -5/Waste | Core integrity fell below 50% 11367 | -5/Waste | Core integrity fell below 20% 11369 | -5/Waste | Destroyed by C-40 Crusher with Compactor Last Messages --------------- 11358_ System Shield crushed. 11358_ Machine Analyzer crushed. 11359_ Com. Matter Pod crushed. 11359_ CPS Tube crushed. 11359_ Thermic Laser crushed. 11359_ Imp. Remote Datajack crushed. 11359_ CPS Tube crushed. 11359_ Imp. Signal Interpreter crushed. 11360_ Hcp. Battery crushed. 11360_ Hvy. Proton Missile Launcher crushed. 11360_ Power Amplifier crushed. 11360_ Enh. Gauss Cannon crushed. 11360_ Imp. Medium Armor Plating crushed. 11362_ System corrupted: Matter fused (-7). 11362_ Cryofiber Web crushed. 11362_ Vortex Trap crushed. 11362_ Mak. System Shield crushed. 11364_ Imp. EM Pulse Cannon crushed. 11365_ Imp. Salvage Targeting Computer crushed. 11365_ Prc. Matter Filter crushed. Map ----- +----------------------------------------------------+ | ?????????????????????????????????????????????????? | | ?????????????????????????????????????????????????? | | ?????????????????????????????????????????????????? | | ?????????????????????????????????????????????????? | | ?????????????????????????????????????????????????? | | ?????????????????????????????????????????????????? | | ?????????????????????????????????????????????????? | | ?????????????????????????????????????????????????? | | ?????????????????????????????????????????????????? | | ?????????????????????????????????????????????????? | | ????????????????????????######???????????#???????? | | ????????????????????????# #?????????? #???????? | | ????????????????????????# #????????? #???????? | | ????????????????????????# #???????? #???????? | | ????????????????????????# ] #??????? #???????? | | ??????????????????????### ######## ########? | | ??????????????????????# = | | ??????????????????????# | | ??????????????????????# [ | | ?????????????????????## ! | | ???????????####????###;;; ######## ######??? | | ??????????## ######;; ; #???????? #???????? | | ?????????## *= ; ;! ######?#? #???????? | | ?????????# ; !]CC| # # #???????? | | ?????????# CCCC #???????? | | ?????????# !CC@CC #???????? | | ?????????# |CCCC #???????? | | ?????????# CC #???????? | | ?????????# CC #???????? | | ?????????## ;;CC ### #???????? | | ??????????# # ; #####????? #???????? | | ??????????# #### #???????????#???????? | | ??????????############??# #???????????????????? | | ????????????????????????# #???????????????????? | | ??????????????????????# #???????????????????? | | ??????????????????????# #???????????????????? | | ??????????????????????# #???????????????????? | | ??????????????????????# #???????????????????? | | ??????????????????????### #???????????????????? | | ????????????????????????# #???????????????????? | | ????????????????????????# #???????????????????? | | ????????????????????????# #???????????????????? | | ????????????????????????# #???????????????????? | | ????????????????????????######???????????????????? | | ?????????????????????????????????????????????????? | | ?????????????????????????????????????????????????? | | ?????????????????????????????????????????????????? | | ?????????????????????????????????????????????????? | | ?????????????????????????????????????????????????? | | ?????????????????????????????????????????????????? | +----------------------------------------------------+ Best States ------------- Heat Dissipation 67 Energy Generation 18 Energy Capacity 250 Matter Stores 300 Matter Capacity 300 Sight Range 16 Terrain Scan Density 10 Jamming Range 12 Armor Coverage 600 Evasion (%) 50 Recoil Reduction 1 Item Schematics ----------------- None Robot Schematics ------------------ K-01 Serf | -7/Recycling | Hacked Fabricated ------------ Nothing Repaired ---------- Nothing Alien Tech Used ----------------- None Achievements -------------- None Challenges ------------ None Game ------ Seed ArmageddonDrainedMount Manual? 0 Play Time 00:57:42 Cumulative 166.8 hours Start 2025.05.11 @ 14:52:07 End 2025.05.11 @ 15:56:43 Sessions 1 Manual Loads 0 Difficulty Rogue Special Mode None Game No. 187 Rogue 187 Adventurer 0 Explorer 0 Win Type - Total 1 Types 1/0/0/0/0/0/0/0/0/0 Lore% 69 Gallery% 68 Achievement% 61 Wizard Run 0 Options --------- Layout 1 ASCII 0 Keyboard 0 Movement Numpad Keybinds 0 Fullscreen 1 Font 24/Smallcaps Map View 50x35 Zoom Use 0% Tactical HUD 1 Map Filters NONE Filters NONE Steam 1 RUN: a7e155e0-4215-4670-a767-d8b766a4ac8d